Cogmind - Beta 17 @@@ ROGUE MODE // 2026.07.20 @ 20:22:17 Player: kite Result: Destroyed by D-53 Grenadier with Mini Grenade Launcher Performance ------------- Evolutions (0) 0 Regions Visited (2) 400 Robots Destroyed (32) 160 Value Destroyed (594) 594 Prototype IDs (0) 0 Alien Tech Used (0) 0 Bonus (0) 0 TOTAL SCORE: 1154 Bonus ------- None Cogmind --------- Core Integrity 0/250 Matter 274/300 Energy 73/100 System Corruption 0% Temperature Cool (0) Movement Core (300) Ox5 Location -10/Mines Parts ------- > --- POWER (1) -------- (None) > --- PROPULSION (2) --- (None) > --- UTILITY (2) ------ Medium Storage Unit Improved Targeting Computer > --- WEAPON (2) ------- Heavy Assault Rifle Heavy Assault Rifle > --- INVENTORY (10) --- Light Treads Light Treads Huge Storage Unit Large Matter Pod (58) Seismic Detector Seismic Detector Hacking Suite Grenade Launcher Peak State ------------ > --- POWER ------------ Light Nuclear Core > --- PROPULSION ------- Light Treads Light Treads > --- UTILITY ---------- Small Storage Unit Improved Targeting Computer > --- WEAPON ----------- Heavy Assault Rifle Heavy Assault Rifle > --- INVENTORY -------- Light Treads Large Matter Pod Seismic Detector Seismic Detector Hacking Suite Heavy Assault Rifle Heavy Assault Rifle Grenade Launcher [Rating: 13] Favorites ----------- Power Light Ion Engine Engine Light Ion Engine Power Core Light Nuclear Core Propulsion Light Treads Treads Light Treads Utility Small Storage Unit Storage Small Storage Unit Processor Improved Targeting Computer Weapon Heavy Assault Rifle Energy Gun Medium Laser Ballistic Gun Heavy Assault Rifle Build | -11 -10 -10 ------- Run | Yrd Mat Min Slots Evolved . | . . . Power . | . . . Propulsion . | . . . Utility . | . . . Weapon . | . . . Parts Attached 15 | 6 6 3 Power 3 | 1 1 1 Engine 1 | 1 . . Core 2 | . 1 1 Reactor . | . . . Propulsion 2 | 2 . . Treads 2 | 2 . . Leg . | . . . Wheel . | . . . Hover . | . . . Flight . | . . . Utility 4 | 1 3 . Device . | . . . Storage 3 | 1 2 . Processor 1 | . 1 . Hackware . | . . . Protection . | . . . Artifact . | . . . Weapon 6 | 2 2 2 Energy Gun 2 | 2 . . Energy Cannon . | . . . Ballistic Gun 4 | . 2 2 Ballistic Cannon . | . . . Launcher . | . . . Special Weapon . | . . . Impact Weapon . | . . . Slashing Weapon . | . . . Piercing Weapon . | . . . Special Melee Weapon . | . . . Unidentified Prototypes . | . . . Parts Lost 6 | . . 6 Power 2 | . . 2 Propulsion 2 | . . 2 Utility . | . . . Weapon 2 | . . 2 Highest Loss Streak 5 | . . 5 To Critical Strikes . | . . . Average Backups 7 | 3 8 10 Power . | . . . Propulsion . | . . 2 Utility 3 | 1 4 5 Weapon 2 | . 3 3 Tool/Special . | . . . Unused Backups 13 | . 5 8 Power 1 | . 1 . Propulsion 2 | . . 2 Utility 7 | . 2 5 Weapon 3 | . 2 1 Tool/Special . | . . . Average Slot Usage (%) 94 | . 94 96 Engine 6 | . 7 . Core 7 | . 6 12 Treads 27 | . 28 26 Storage 14 | . 14 14 Processor 10 | . 9 14 Energy Gun 7 | . 9 . Ballistic Gun 20 | . 18 26 Peak Build Rating 13 | 7 13 13 Average Rating 10 | 5 10 12 On Entrance 6 | . 7 13 Avg Prop Armor Cover (%) . | . . . Naked Turns . | . . . Heaviest Build 91 | 12 91 21 Greatest Support 40 | 40 40 40 Greatest Overweight (x) 2 | . 2 . Average Overweight (x) . | . . . Largest Inventory Capacity 25 | 8 25 10 Average Capacity 9 | 7 9 10 Most Carried 11 | 6 11 10 Average Carried 7 | 3 8 9 Final Capacity 10 | 8 10 10 Final Carried 10 | 6 10 8 Class Distribution -------------------- 100% | Mutant Dominant Class ---------------- Mutant | -10/Materials Mutant | -10/Mines Resources | -11 -10 -10 ----------- Run | Yrd Mat Min Matter Collected 742 | 203 277 262 Remotely . | . . . Salvage Created 991 | 170 608 213 Parts 73 | 20 41 12 Haulers Intercepted 1 | . 1 . Recyclers Shooed 4 | 2 2 . Parts Field Recycled . | . . . Retrieved Matter . | . . . Parts Self-Destructed . | . . . Prevented . | . . . Parts Restored . | . . . Kills | -11 -10 -10 ------- Run | Yrd Mat Min Combat Hostiles Destroyed 14 | . 10 4 Guns 14 | . 10 4 Classes Destroyed 9 | 1 8 . Worker 2 | . 1 1 Builder 3 | . 3 . Tunneler 7 | 7 . . Hauler 1 | . 1 . Recycler 1 | . 1 . Operator 1 | . 1 . Watcher 3 | . 3 . Swarmer 3 | . 3 . Grunt 11 | . 7 4 Best Kill Streak 4 | 2 4 3 Combat Bots Only 3 | . 3 2 Max Kills in Single Turn 1 | 1 1 1 Gunslinging . | . . . Exploded . | . . . Melee . | . . . Uniques/NPCs Destroyed . | . . . Combat | -11 -10 -10 -------- Run | Yrd Mat Min Hostile Shots Fired 79 | . 39 40 Missed 18 | . 10 8 Hits 61 | . 29 32 Projectile 61 | . 29 32 AOE 9 | . . 9 Critical Strikes 1 | . . 1 Damage Taken 979 | . 264 715 Core 262 | . 95 167 Absorbed by Shields . | . . . Core Remaining (%) 100 | 100 . . Volleys Fired 95 | 18 55 22 Largest 2 | 2 2 2 Hottest 100 | 100 100 46 Shots Fired 190 | 36 110 44 Gun 190 | 36 110 44 Cannon . | . . . Launcher . | . . . Special . | . . . Kinetic 130 | . 86 44 Thermal 60 | 36 24 . Explosive . | . . . Electromagnetic . | . . . Robot Hit Streak 11 | 8 11 11 Robot Miss Streak 5 | 1 5 3 Penetration Max . | . . . Secondary Targets 2 | . . 2 Max Gunslinging Chain 1 | . . 1 Shots Hit Robots 119 | 20 63 36 Core Hits 48 | 8 29 11 Critical Kills 1 | . 1 . Critical Parts Destroyed . | . . . Critical Strikes 5 | 1 4 . Burn 4 | 1 3 . Destroy 1 | . 1 . Melee Attacks . | . . . Impact . | . . . Slashing . | . . . Piercing . | . . . Sneak Attacks . | . . . Combat Hostiles . | . . . Follow-up Attacks . | . . . Damage Inflicted 1759 | 262 953 544 Guns 1759 | 262 953 544 Cannons . | . . . Explosions . | . . . Melee . | . . . Ramming . | . . . Kinetic 1311 | . 767 544 Thermal 448 | 262 186 . Explosive . | . . . Electromagnetic . | . . . Impact . | . . . Slashing . | . . . Piercing . | . . . Highest Corruption . | . . . Average Corruption . | . . . Corruption Purged . | . . . Corruption Blocked . | . . . Overload Shots . | . . . Overflow Damage . | . . . Projectiles . | . . . Explosions . | . . . Melee . | . . . Knockbacks . | . . . Impact . | . . . Kinetic . | . . . Secondary . | . . . Self-Inflicted Damage . | . . . Shots . | . . . Rammed . | . . . Targets Rammed . | . . . Kicked . | . . . Crushed . | . . . Highest Temperature 156 | 156 135 60 Average Temperature 42 | 51 49 20 Received Heat Transfer 282 | . 72 210 Siege Activations . | . . . Martial Activations . | . . . Shielding Activations . | . . . Robots Disrupted . | . . . Combat Hostiles . | . . . Robots Corrupted . | . . . Combat Hostiles . | . . . Parts Fried . | . . . Impact Corruptions . | . . . Robots Melted . | . . . Combat Hostiles . | . . . Parts Melted 3 | . 3 . Heat Transferred 1628 | 851 777 . Parts Sabotaged . | . . . Parts Stolen . | . . . Parts Stripped . | . . . Power Chain Reactions . | . . . Alert | -11 -10 -10 ------- Run | Yrd Mat Min Maximum Alert Level . | . . . Low Security (%) 100 | 100 100 100 Level 1 . | . . . Level 2 . | . . . Level 3 . | . . . Level 4 . | . . . Level 5 . | . . . High Security . | . . . Max Security . | . . . Peak Influence 86 | 10 67 86 Initial 21 | . 6 21 Average 20 | 1 18 43 Influence Increases 462 | 35 322 105 Destroy 0b10 Robot/C 280 | . 200 80 Destroy 0b10 Robot/NC 90 | 35 50 5 Destroy Leader 68 | . 48 20 Successful Hack 7 | . 7 . Destroy Structure 2 | . 2 . Lose Combat Pursuer 15 | . 15 . Influence Decreases 462 | 25 278 159 Entered New Map 37 | . 4 33 Time Decay 409 | 25 274 110 Lost Part 16 | . . 16 Squads Dispatched 1 | . 1 . Investigation 1 | . 1 . Extermination . | . . . Reinforcement . | . . . Assault . | . . . Garrison . | . . . Intercept . | . . . Searches Triggered . | . . . Construction Impeded . | . . . Haulers Reinforced . | . . . Active Scanning Responses . | . . . Cargo Convoy Interrupts . | . . . Stealth | -11 -10 -10 --------- Run | Yrd Mat Min Distress Signals 3 | . 3 . Communications Jammed . | . . . Distress Signals . | . . . Times Spotted 26 | . 20 6 Peak Tracking Total 4 | . 4 2 Tactical Retreats 1 | . 1 . Traps | -11 -10 -10 ------- Run | Yrd Mat Min Traps Triggered 1 | . 1 . Indirectly . | . . . Trap Hack Attempts . | . . . Triggered . | . . . Disarmed . | . . . Reprogrammed . | . . . Reused . | . . . Traps Extracted . | . . . Installed . | . . . Triggered . | . . . Machines | -11 -10 -10 ---------- Run | Yrd Mat Min Machines Disabled 2 | . 2 . Max in Single Turn 1 | . 1 . Machines Repaired . | . . . Machines Dismantled . | . . . Machines Sabotaged . | . . . Overloaded Fab Kills . | . . . Hacking | -11 -10 -10 --------- Run | Yrd Mat Min Machines Accessed 3 | . 3 . Terminals 3 | . 3 . Fabricators . | . . . Repair Stations . | . . . Recycling Units . | . . . Scanalyzers . | . . . Garrison Access . | . . . Total Hacks 7 | . 7 . Successful 2 | . 2 . Failed 5 | . 5 . Catastrophic 3 | . 3 . Database Lockouts . | . . . Manual 6 | . 6 . Terminals 7 | . 7 . Fabricators . | . . . Repair Stations . | . . . Recycling Units . | . . . Scanalyzers . | . . . Garrison Access . | . . . Terminal Hacks 2 | . 2 . Part Schematic 2 | . 2 . Fabricator Hacks . | . . . Repair Station Hacks . | . . . Recycling Unit Hacks . | . . . Scanalyzer . | . . . Garrison Access Hacks . | . . . Unauthorized Hacks . | . . . Terminals . | . . . Fabricators . | . . . Repair Stations . | . . . Recycling Units . | . . . Scanalyzers . | . . . Garrison Access . | . . . Data Cores Recovered 1 | . 1 . Used . | . . . Hacking Detections 3 | . 3 . Full Trace Events 2 | . 2 . Feedback Events . | . . . Feedback Blocked . | . . . Robot Schematics Acquired . | . . . Robots Built . | . . . Authchips . | . . . Time . | . . . Total Robot Build Rating . | . . . Part Schematics Acquired 2 | . 2 . Parts Built . | . . . Authchips . | . . . Time . | . . . Total Part Build Rating . | . . . Part Studies Acquired . | . . . Parts Repaired . | . . . Time . | . . . Parts Recycled . | . . . Recycled Matter . | . . . Retrieved Matter . | . . . Retrieved Components . | . . . Parts Scanalyzed . | . . . Part Schematics Acquired . | . . . Parts Damaged . | . . . Bothacking | -11 -10 -10 ------------ Run | Yrd Mat Min Used RIF Installer . | . . . Robots Hacked . | . . . Non-combat . | . . . Combat . | . . . Robot Hacks Applied . | . . . Relay Couplers Released . | . . . Fabnet Peak Effective % . | . . . Robots Rewired . | . . . Allies Hacked . | . . . Hacks Repelled . | . . . Allies | -11 -10 -10 -------- Run | Yrd Mat Min Total Allies . | . . . Largest Group . | . . . Highest-Rated Group . | . . . Highest-Rated Ally . | . . . Total Orders . | . . . Ally Attacks . | . . . Total Damage . | . . . Kills . | . . . Allies Corrupted . | . . . Allies Melted . | . . . Intel | -11 -10 -10 ------- Run | Yrd Mat Min Active Infowar (turns) . | . . . Robot Analysis Total . | . . . Derelict Logs Recovered . | . . . Drone Launches . | . . . Drone Recoveries . | . . . Exploration | -11 -10 -10 ------------- Run | Yrd Mat Min Turns Passed 1282 | 217 830 235 Spaces Moved 568 | 86 379 103 Core 2 | 2 . . Treads 566 | 84 379 103 Legs . | . . . Wheels . | . . . Hover . | . . . Flight . | . . . Fastest Speed 50 | 50 160 160 Average Speed 162 | 157 164 160 Slowest Speed 320 | 160 320 160 Overloaded Moves . | . . . Propulsion Burnouts . | . . . Robots Hopped . | . . . Potential Cave-ins . | . . . Cave-ins Triggered . | . . . Exploration Rate (%) 28 | 4 66 15 Regions Visited 2 Branch Regions 1 Pre-discovered Areas . | . . . Known Exits Taken . | . . . Unknown Exits Taken 2 | 1 1 . Scrap Searched 1 | . . 1 Spaces Dug . | . . . Terrain Destroyed . | . . . Melee . | . . . Projectile . | . . . AOE . | . . . Terrain Rammed . | . . . Walls Destroyed . | . . . Machines Disabled . | . . . Actions | -11 -10 -10 --------- Run | Yrd Mat Min Total 739 | 129 480 130 Wait 36 | 13 21 2 Move 566 | 85 378 103 Hop . | . . . Pick Up 17 | 7 10 . Fast Attach 9 | 5 3 1 Attach 3 | 1 . 2 Detach . | . . . Swap 3 | . 3 . Drop 10 | . 10 . Fire 95 | 18 55 22 Melee . | . . . Ram . | . . . Kick . | . . . Crush . | . . . Escape Stasis . | . . . Rewire . | . . . Trap . | . . . Miscellaneous . | . . . Route ------- -11/Scrapyard -10/Materials (discovered 4 exits: [*Mat x2] / [*Min x2]) -10/Mines (discovered 1 exit: [*Mat]) History --------- Turn | Location | Event 2 | -11/Scrapyard | Met Revision 17 13 | -11/Scrapyard | Discovered new exit (range 16) 218 | -11/Scrapyard | Entered Materials 218 | -10/Materials | Discovered new exit (range 8) 314 | -10/Materials | Build established: Mutant 587 | -10/Materials | Discovered new exit (range 16) 739 | -10/Materials | Discovered new exit (range 6) 909 | -10/Materials | Discovered new exit (range 10) 1048 | -10/Materials | Entered Mines 1089 | -10/Mines | Core integrity fell below 50% 1165 | -10/Mines | Found a Scrap Suit stashed away for nefarious purposes 1227 | -10/Mines | Discovered new exit (range 6) 1262 | -10/Mines | Assembled infested the area 1280 | -10/Mines | Core integrity fell below 20% 1283 | -10/Mines | Destroyed by D-53 Grenadier with Mini Grenade Launcher Last Messages --------------- into the system." 01218_ Searching scrap... 01218_ Found Ion Engine. 01218_ Found Sensor Array. 01218_ Found 49 Matter. 01219_ Acquired 49 matter. 01227_ EXIT=FOUND 01262_ ALERT: Infestation in the mines, dispatching Demolisher response squad. 01273_ C-45 Heavy ARC bursts open, deploying its payload. 01273_ D-53 Grenadier unfolds itself. 01273_ Lgt. Treads destroyed. 01277_ Lgt. Nuclear Core destroyed. 01278_ U-05 Engineer builds a Wall. 01279_ Hvy. Assault Rifle destroyed. 01279_ Lgt. Treads destroyed. 01279_ D-53 Grenadier destroyed. 01281_ The unstable cave ceiling collapses. 01282_ U-05 Engineer builds a Wall. Map ----- +----------------------------------------------------+ | ??????????????????????????????????????????? | | ??????????????????????????????????????????? | | ??????????????????????????????????????????? | | ??????????????????????????????????????????? | | ??????????????????????????????????????????? | | ??????????????????????????????????????????? | | ??????????????????????????????????????????? | | ??????????????????????????????????????????? | | ??????????????????????????????????????????? | | ??????????????????????????????????????????? | | ??????????????????????????????????????????? | | ??????????????????????????????????????????? | | ??????????????????????????????????????????? | | ??????????????????????????????????????????? | | ??????????????????????????????????????????? | | ??????????????????????????????????????????? | | ??????????????????????????????????????????? | | ????????????????????????????????#######???? | | ???????????????# #######??????# #???? | | ?????????????### #??##### #???? | | ???????? #### #### < #???? | | ??????????###### ?## # ### #???? | | ???????????????# # # #?# #???? | | ??????????????## #?#######???? | | ??????????????# ##??????????? | | ?????????????# @d #??????????? | | ?????????????????#### ##??????????? | | ????????????????????# #########???? | | ????????????????????## ## [ = #???? | | ?????????????????????## # #r## #???? | | ??????????????????????###?### ## #???? | | ??????????????????????####### ## [ #???? | | ??????????????????????# ## ** !=#???? | | ??????????????????????# ##### #####!###???? | | ????????????????????????????# ##### #?????? | | ????????????????????????????# #?????? | | ??????????????????????????### #######?????? | | ?????????????????????????## ##?????????? | | ?????????????????????????# #???####??? | | ?????????????????????????# #### ##?? | | ?????????????????????????#! #?? | | ????????????????????????## #?? | | ????????????????????????# #### #?? | | ????????????????????????# ##??## #?? | | ????????????????????????# ##????## #?? | | ????????????????????????### #???????# ##?? | | ??????????????????????????# #????????###??? | | ??????????????????????????# #?????????????? | | ??????????????????????????# #?????????????? | | ??????????????????????????# #?????????????? | +----------------------------------------------------+ Best States ------------- Heat Dissipation 25 Energy Generation 14 Energy Capacity 160 Matter Stores 300 Matter Capacity 300 Sight Range 16 Terrain Scan Density 10 Evasion (%) 40 Targeting Accuracy 6 Recoil Reduction 2 Item Schematics ----------------- Huge Storage Unit | -10/Materials | Hacked Cargo Storage Unit | -10/Materials | Hacked Robot Schematics ------------------ None Fabricated ------------ Nothing Repaired ---------- Nothing Studied --------- None Alien Tech Used ----------------- None Achievements -------------- None Challenges ------------ None Game ------ Seed LightpackGyrokineticShell Manual? 0 Play Time 00:06:13 Cumulative 472.0 hours Start 2026.07.20 @ 20:17:01 End 2026.07.20 @ 20:22:17 Sessions 1 Manual Loads 0 Difficulty Rogue Special Mode None Game No. 431 Rogue 431 Adventurer 0 Explorer 0 Win Type - Total 12 Types 7/0/2/1/0/0/0/1/0/1 Lore% 63 Gallery% 69 Achievement% 66 Wizard Run 0 Options --------- Layout 1 ASCII 0 Keyboard 0 Movement Mouse Keybinds 0 Fullscreen 2 Font 24/Cog Map View 50x35 Zoom Use 23% Tactical HUD 1 Map Filters NONE Filters NONE Steam 1 RUN: 2ab415b2-740d-4d86-a126-725948dc9aaa